Cogmind - Beta 12 @@@ ROGUE MODE // 2024.02.09 @ 21:52:45 Player: Six of Ten Result: Destroyed by P-70 Sage with Tesla Rifle Performance ------------- Evolutions (5) 2500 Regions Visited (12) 2400 Robots Destroyed (22) 110 Value Destroyed (717) 717 Prototype IDs (25) 500 Alien Tech Used (0) 0 Bonus (800) 800 TOTAL SCORE: 7027 Bonus ------- Entered DSFs 500 Aligned with FarCom 300 Cogmind --------- Core Integrity 0/1000 Matter 79/300 Energy 99/100 System Corruption 7% Temperature Cool (0) Movement Core (50) Location -5/Factory Parts ------- > --- POWER (1) -------- (None) > --- PROPULSION (6) --- (None) > --- UTILITY (6) ------ Enhanced Optical Array Power Shielding PSU Rigger > --- WEAPON (4) ------- (None) > --- INVENTORY (5) ---- 0b10 Decoder Chip [Skirmisher] Improved Remote Datajack Peak State ------------ > --- POWER ------------ Micro Fission Core > --- PROPULSION ------- Xenon Bombardment Thruster Xenon Bombardment Thruster Xenon Bombardment Thruster Xenon Bombardment Thruster Xenon Bombardment Thruster Xenon Bombardment Thruster > --- UTILITY ---------- Small Storage Unit Triangulator Enhanced Optical Array Targeting Computer Power Shielding PSU Rigger > --- WEAPON ----------- Improved Arc Projector Wave Gun Minigun Minigun > --- INVENTORY -------- Xenon Bombardment Thruster 0b10 Decoder Chip [Skirmisher] Long-range Proton Cannon Minigun Minigun [Rating: 71] Favorites ----------- Power Light Ion Engine Engine Light Ion Engine Power Core Micro Fission Core Propulsion Xenon Bombardment Thruster Leg Aluminum Leg Flight Unit Xenon Bombardment Thruster Utility Small Storage Unit Device Terrain Scanner Storage Small Storage Unit Processor Targeting Computer Hackware Authchip [Weapon] Protection Power Shielding Weapon Minigun Energy Gun EM Pulse Gun Energy Cannon Long-range Proton Cannon Ballistic Gun Minigun Ballistic Cannon Magnetic Acceleration Cannon Build | -11 -10 -9 -9 -9 -8 -8 -7 -7 -6 -6 -6 -5 ------- Run | Jun Mat Mat Min Exi Min Mat Fac DSF Fac Low Low Fac Slots Evolved 10 | . . 2 . . . 2 2 . 2 . . 2 Power . | . . . . . . . . . . . . . Propulsion 4 | . . . . . . 1 1 . 1 . . 1 Utility 4 | . . . . . . 1 1 . 1 . . 1 Weapon 2 | . . 2 . . . . . . . . . . Parts Attached 58 | 6 3 3 . . . 12 2 6 7 5 . 14 Power 8 | 1 . 1 . . . 1 . 1 2 1 . 1 Engine 7 | 1 . 1 . . . 1 . 1 2 1 . . Core 1 | . . . . . . . . . . . . 1 Reactor . | . . . . . . . . . . . . . Propulsion 17 | 2 2 . . . . 3 1 4 2 . . 3 Treads . | . . . . . . . . . . . . . Leg 8 | 2 2 . . . . 3 1 . . . . . Wheel . | . . . . . . . . . . . . . Hover . | . . . . . . . . . . . . . Flight 9 | . . . . . . . . 4 2 . . 3 Utility 13 | 1 1 . . . . 3 1 1 1 . . 5 Device 5 | . 1 . . . . 1 . . . . . 3 Storage 1 | 1 . . . . . . . . . . . . Processor 4 | . . . . . . 2 1 . . . . 1 Hackware 1 | . . . . . . . . . . . . 1 Protection 2 | . . . . . . . . 1 1 . . . Artifact . | . . . . . . . . . . . . . Weapon 20 | 2 . 2 . . . 5 . . 2 4 . 5 Energy Gun 4 | . . 1 . . . . . . 1 . . 2 Energy Cannon 1 | . . . . . . . . . . . . 1 Ballistic Gun 14 | 2 . 1 . . . 5 . . 1 3 . 2 Ballistic Cannon 1 | . . . . . . . . . . 1 . . Launcher . | . . . . . . . . . . . . . Special Weapon . | . . . . . . . . . . . . . Impact Weapon . | . . . . . . . . . . . . . Slashing Weapon . | . . . . . . . . . . . . . Piercing Weapon . | . . . . . . . . . . . . . Special Melee Weapon . | . . . . . . . . . . . . . Unidentified Prototypes 2 | . . . . . . . . . 2 . . . Parts Lost 22 | . . 1 . . . 1 . 1 1 . . 18 Power 2 | . . 1 . . . . . . . . . 1 Propulsion 8 | . . . . . . . . . 1 . . 7 Utility 7 | . . . . . . 1 . 1 . . . 5 Weapon 5 | . . . . . . . . . . . . 5 Highest Loss Streak 15 | . . 1 . . . 1 . 1 1 . . 15 To Critical Strikes . | . . . . . . . . . . . . . Average Slot Usage (%) 97 | . 92 100 100 100 100 98 100 97 99 99 100 94 Engine 8 | . 14 11 11 11 11 9 7 7 6 6 6 3 Leg 17 | . 28 22 22 22 22 26 30 6 . . . . Flight 10 | . . . . . . . . 23 33 33 33 32 Device 8 | . 7 11 11 11 11 8 7 7 6 6 6 9 Storage 9 | . 14 11 11 11 11 9 7 7 6 6 6 4 Processor 4 | . . . . . . 9 15 11 6 6 6 6 Protection 3 | . . . . . . . . 1 12 13 13 9 Energy Gun 5 | . . 11 11 11 11 6 . . 3 . . 2 Ballistic Gun 27 | . 28 33 33 33 33 29 30 30 23 25 26 18 Naked Turns . | . . . . . . . . . . . . . Heaviest Build 30 | 12 13 16 16 16 16 29 29 29 26 26 26 30 Greatest Support 52 | 20 20 20 20 20 20 42 52 52 30 30 30 36 Greatest Overweight (x) 4 | . . . . . . . . 2 1 . . 4 Average Overweight (x) . | . . . . . . . . . . . . . Largest Inventory Capacity 8 | 8 8 8 8 8 8 8 8 8 8 8 8 8 Average Capacity 7 | 6 8 8 8 8 8 8 8 8 8 8 8 7 Most Carried 8 | 6 8 7 7 8 8 8 7 8 8 8 8 8 Average Carried 7 | 3 7 5 6 7 8 7 6 7 7 7 8 6 Final Capacity 8 | 8 8 8 8 8 8 8 8 8 8 8 8 5 Final Carried 8 | 6 8 5 7 8 8 8 6 8 8 8 8 2 Class Distribution -------------------- 46% | Skirmisher 21% | Mutant 20% | Sprinter 6% | Infiltrator-Sprinter 3% | Scavenger-Skirmisher Dominant Class ---------------- Mutant | -10/Materials Skirmisher | -9/Materials Skirmisher | -9/Mines Skirmisher | -9/Exiles Skirmisher | -8/Mines Skirmisher | -8/Materials Skirmisher | -7/Factory Skirmisher | -7/DSF Sprinter | -6/Factory Sprinter | -6/Lower Caves Sprinter | -6/Lower Caves Sprinter | -5/Factory Resources | -11 -10 -9 -9 -9 -8 -8 -7 -7 -6 -6 -6 -5 ----------- Run | Jun Mat Mat Min Exi Min Mat Fac DSF Fac Low Low Fac Matter Collected 1148 | 206 191 55 51 . . 200 . 69 . 109 . 267 Remotely . | . . . . . . . . . . . . . Salvage Created 906 | . 210 55 53 . . 373 . 69 . . . 146 Parts 57 | . 14 4 4 . . 20 . 4 . . . 11 Haulers Intercepted . | . . . . . . . . . . . . . Recyclers Shooed . | . . . . . . . . . . . . . Parts Field Recycled . | . . . . . . . . . . . . . Retrieved Matter . | . . . . . . . . . . . . . Parts Self-Destructed . | . . . . . . . . . . . . . Prevented . | . . . . . . . . . . . . . Kills | -11 -10 -9 -9 -9 -8 -8 -7 -7 -6 -6 -6 -5 ------- Run | Jun Mat Mat Min Exi Min Mat Fac DSF Fac Low Low Fac Combat Hostiles Destroyed 17 | . 6 1 3 . . 4 . 1 . . . 2 Guns 17 | . 6 1 3 . . 4 . 1 . . . 2 Classes Destroyed 9 | . 3 1 . . . 3 . 1 . . . 1 Builder 1 | . 1 . . . . . . . . . . . Recycler 2 | . . . . . . 2 . . . . . . Watcher 2 | . . . . . . 1 . . . . . 1 Swarmer 5 | . 2 . 3 . . . . . . . . . Grunt 6 | . 4 . . . . 2 . . . . . . Sentry 2 | . . 1 . . . 1 . . . . . . Specialist 1 | . . . . . . . . 1 . . . . Hunter 1 | . . . . . . 1 . . . . . . Programmer 2 | . . . . . . . . . . . . 2 Best Kill Streak 3 | . 3 1 3 . . 3 . 1 . . . 1 Combat Bots Only 3 | . 2 1 3 . . 2 . 1 . . . 1 Max Kills in Single Turn 2 | . 1 1 2 . . 1 . 1 . . . 1 Gunslinging 1 | . . . 1 . . . . . . . . . Exploded . | . . . . . . . . . . . . . Melee . | . . . . . . . . . . . . . Uniques/NPCs Destroyed . | . . . . . . . . . . . . . Combat | -11 -10 -9 -9 -9 -8 -8 -7 -7 -6 -6 -6 -5 -------- Run | Jun Mat Mat Min Exi Min Mat Fac DSF Fac Low Low Fac Damage Taken 3272 | . 292 39 39 . . 351 . 248 . . . 2303 Core 1221 | . 48 . . . . 49 . 118 . . . 1006 Absorbed by Shields . | . . . . . . . . . . . . . Redirected to Shielding 92 | . . . . . . . . . . . . 92 Core Remaining (%) 92 | 100 80 . . . 100 91 . 83 . . 100 . Volleys Fired 82 | . 22 5 3 . . 16 . 4 . . . 32 Largest 4 | . 2 4 4 . . 4 . 4 . . . 4 Hottest 196 | . 40 100 100 . . 115 . 100 . . . 196 Shots Fired 240 | . 44 20 12 . . 64 . 16 . . . 84 Gun 240 | . 44 20 12 . . 64 . 16 . . . 84 Cannon . | . . . . . . . . . . . . . Launcher . | . . . . . . . . . . . . . Special . | . . . . . . . . . . . . . Kinetic 195 | . 44 15 9 . . 52 . 16 . . . 59 Thermal 14 | . . . . . . . . . . . . 14 Explosive . | . . . . . . . . . . . . . Electromagnetic 31 | . . 5 3 . . 12 . . . . . 11 Robot Hit Streak 10 | . 6 5 8 . . 10 . 7 . . . 6 Robot Miss Streak 5 | . 4 5 . . . 5 . 1 . . . 3 Penetration Max . | . . . . . . . . . . . . . Secondary Targets 4 | . 1 . 1 . . 1 . . . . . 1 Max Gunslinging Chain 1 | . 1 . 1 . . 1 . . . . . 1 Shots Hit Robots 146 | . 28 9 7 . . 39 . 11 . . . 52 Core Hits 49 | . 13 3 4 . . 16 . 2 . . . 11 Critical Kills . | . . . . . . . . . . . . . Critical Parts Destroyed 1 | . . . . . . 1 . . . . . . Critical Strikes 2 | . . . . . . 1 . . . . . 1 Burn 1 | . . . . . . . . . . . . 1 Destroy 1 | . . . . . . 1 . . . . . . Melee Attacks . | . . . . . . . . . . . . . Impact . | . . . . . . . . . . . . . Slashing . | . . . . . . . . . . . . . Piercing . | . . . . . . . . . . . . . Sneak Attacks . | . . . . . . . . . . . . . Combat Hostiles . | . . . . . . . . . . . . . Follow-up Attacks . | . . . . . . . . . . . . . Damage Inflicted 2360 | . 361 95 76 . . 651 . 187 . . . 990 Guns 2330 | . 361 95 76 . . 651 . 187 . . . 960 Cannons . | . . . . . . . . . . . . . Explosions . | . . . . . . . . . . . . . Melee . | . . . . . . . . . . . . . Ramming 30 | . . . . . . . . . . . . 30 Kinetic 1902 | . 361 85 44 . . 540 . 187 . . . 685 Thermal 250 | . . . . . . . . . . . . 250 Explosive . | . . . . . . . . . . . . . Electromagnetic 178 | . . 10 32 . . 111 . . . . . 25 Impact . | . . . . . . . . . . . . . Slashing . | . . . . . . . . . . . . . Piercing . | . . . . . . . . . . . . . Highest Corruption 7 | . . . . . . . . . . . . 7 Average Corruption 5 | . . . . . . . . . . . . 5 Corruption Purged . | . . . . . . . . . . . . . Corruption Blocked . | . . . . . . . . . . . . . Effects 6 | . . . . . . . . . . . . 6 Matter Fused 2 | . . . . . . . . . . . . 2 Energy Discharges 2 | . . . . . . . . . . . . 2 Parts Rejected 1 | . . . . . . . . . . . . 1 Data Loss (minor) 1 | . . . . . . . . . . . . 1 Overload Shots . | . . . . . . . . . . . . . Overflow Damage . | . . . . . . . . . . . . . Projectiles . | . . . . . . . . . . . . . Explosions . | . . . . . . . . . . . . . Melee . | . . . . . . . . . . . . . Knockbacks . | . . . . . . . . . . . . . Impact . | . . . . . . . . . . . . . Kinetic . | . . . . . . . . . . . . . Secondary . | . . . . . . . . . . . . . Self-Inflicted Damage 14 | . . . . . . . . . . . . 14 Shots . | . . . . . . . . . . . . . Rammed 10 | . . . . . . . . . . . . 10 Targets Rammed 10 | . . . . . . . . . . . . 10 Kicked . | . . . . . . . . . . . . . Crushed . | . . . . . . . . . . . . . Highest Temperature 493 | . 21 37 90 . . 403 . 61 . 55 9 493 Average Temperature 95 | . 8 17 45 . . 178 . 36 . 21 5 118 Received Heat Transfer 255 | . 126 9 . . . 63 . 27 . . . 30 Effects 11 | . . . . . . 1 . . . . . 10 Shutdowns 1 | . . . . . . . . . . . . 1 Energy Bleed 1 | . . . . . . . . . . . . 1 Interference 5 | . . . . . . . . . . . . 5 Short Circuit 3 | . . . . . . 1 . . . . . 2 Damage (minor) 1 | . . . . . . . . . . . . 1 Siege Activations . | . . . . . . . . . . . . . Robots Corrupted . | . . . . . . . . . . . . . Combat Hostiles . | . . . . . . . . . . . . . Parts Fried . | . . . . . . . . . . . . . Impact Corruptions . | . . . . . . . . . . . . . Robots Melted . | . . . . . . . . . . . . . Combat Hostiles . | . . . . . . . . . . . . . Parts Melted . | . . . . . . . . . . . . . Heat Transferred 407 | . . . . . . . . . . . . 407 Parts Sabotaged . | . . . . . . . . . . . . . Parts Stolen . | . . . . . . . . . . . . . Parts Stripped . | . . . . . . . . . . . . . Power Chain Reactions . | . . . . . . . . . . . . . Missiles Intercepted . | . . . . . . . . . . . . . Alert | -11 -10 -9 -9 -9 -8 -8 -7 -7 -6 -6 -6 -5 ------- Run | Jun Mat Mat Min Exi Min Mat Fac DSF Fac Low Low Fac Peak Influence 159 | . 159 97 107 . . 151 7 20 10 . . 77 Initial 45 | . . 45 37 . . . 7 4 10 . . . Average 33 | . 48 65 105 . . 35 7 10 . . . 22 Maximum Alert Level . | . . . . . . . . . . . . . Low Security (%) 100 | 100 100 100 100 . 100 100 100 100 100 . . 100 Level 1 . | . . . . . . . . . . . . . Level 2 . | . . . . . . . . . . . . . Level 3 . | . . . . . . . . . . . . . Level 4 . | . . . . . . . . . . . . . Level 5 . | . . . . . . . . . . . . . High Security . | . . . . . . . . . . . . . Max Security . | . . . . . . . . . . . . . Squads Dispatched 7 | . 1 1 . . . 2 . 1 . . . 2 Investigation 2 | . . 1 . . . 1 . . . . . . Extermination 2 | . . . . . . . . . . . . 2 Reinforcement 3 | . 1 . . . . 1 . 1 . . . . Assault . | . . . . . . . . . . . . . Garrison . | . . . . . . . . . . . . . Intercept . | . . . . . . . . . . . . . Searches Triggered . | . . . . . . . . . . . . . Construction Impeded . | . . . . . . . . . . . . . Haulers Reinforced . | . . . . . . . . . . . . . Active Scanning Responses . | . . . . . . . . . . . . . Cargo Convoy Interrupts . | . . . . . . . . . . . . . Stealth | -11 -10 -9 -9 -9 -8 -8 -7 -7 -6 -6 -6 -5 --------- Run | Jun Mat Mat Min Exi Min Mat Fac DSF Fac Low Low Fac Distress Signals 3 | . 1 1 . . . 1 . . . . . . Communications Jammed . | . . . . . . . . . . . . . Distress Signals . | . . . . . . . . . . . . . Times Spotted 59 | . 18 5 3 . . 11 . 4 . . . 18 Peak Tracking Total 9 | . 6 5 3 . . 6 . 3 . . . 9 Tactical Retreats 7 | . . . . . . 1 . . . . . 6 Traps | -11 -10 -9 -9 -9 -8 -8 -7 -7 -6 -6 -6 -5 ------- Run | Jun Mat Mat Min Exi Min Mat Fac DSF Fac Low Low Fac Traps Triggered 2 | . 1 1 . . . . . . . . . . Indirectly . | . . . . . . . . . . . . . Trap Hack Attempts . | . . . . . . . . . . . . . Triggered . | . . . . . . . . . . . . . Disarmed . | . . . . . . . . . . . . . Reprogrammed . | . . . . . . . . . . . . . Reused . | . . . . . . . . . . . . . Traps Extracted . | . . . . . . . . . . . . . Installed . | . . . . . . . . . . . . . Triggered . | . . . . . . . . . . . . . Power Sources Rigged 3 | . . . . . . 1 . . . . . 2 Machines | -11 -10 -9 -9 -9 -8 -8 -7 -7 -6 -6 -6 -5 ---------- Run | Jun Mat Mat Min Exi Min Mat Fac DSF Fac Low Low Fac Machines Disabled 1 | . . . . . . . . . . . . 1 Max in Single Turn 1 | . . . . . . . . . . . . 1 Machines Repaired . | . . . . . . . . . . . . . Machines Sabotaged . | . . . . . . . . . . . . . Overloaded Fab Kills . | . . . . . . . . . . . . . Hacking | -11 -10 -9 -9 -9 -8 -8 -7 -7 -6 -6 -6 -5 --------- Run | Jun Mat Mat Min Exi Min Mat Fac DSF Fac Low Low Fac Machines Accessed 15 | . 5 2 . 1 . 2 1 . 1 . . 3 Terminals 11 | . 4 2 . . . 2 1 . 1 . . 1 Fabricators 1 | . . . . . . . . . . . . 1 Repair Stations . | . . . . . . . . . . . . . Recycling Units 1 | . 1 . . . . . . . . . . . Scanalyzers 1 | . . . . . . . . . . . . 1 Garrison Access . | . . . . . . . . . . . . . Total Hacks 44 | . 17 8 . 1 . 7 1 . 4 . . 6 Successful 22 | . 8 5 . 1 . 4 1 . 1 . . 2 Failed 22 | . 9 3 . . . 3 . . 3 . . 4 Catastrophic 2 | . 2 . . . . . . . . . . . Database Lockouts . | . . . . . . . . . . . . . Manual 23 | . 11 5 . 1 . 3 . . 1 . . 2 Terminals 37 | . 15 8 . . . 7 1 . 4 . . 2 Fabricators 2 | . . . . . . . . . . . . 2 Repair Stations . | . . . . . . . . . . . . . Recycling Units 2 | . 2 . . . . . . . . . . . Scanalyzers 2 | . . . . . . . . . . . . 2 Garrison Access . | . . . . . . . . . . . . . Terminal Hacks 9 | . 2 3 . 1 . 2 1 . . . . . Open DSF 1 | . . . . . . . 1 . . . . . Branch Access Points 1 | . . 1 . . . . . . . . . . Emergency Access Points 1 | . 1 . . . . . . . . . . . Alert Level 1 | . . . . . . 1 . . . . . . Locate Traps 1 | . . 1 . . . . . . . . . . Dispatch Records 1 | . 1 . . . . . . . . . . . Zone Layout 2 | . . 1 . . . 1 . . . . . . EX-Prototype ID Bank 1 | . . . . 1 . . . . . . . . Fabricator Hacks 1 | . . . . . . . . . . . . 1 Build 1 | . . . . . . . . . . . . 1 Repair Station Hacks . | . . . . . . . . . . . . . Recycling Unit Hacks 2 | . 2 . . . . . . . . . . . Report Inventory 1 | . 1 . . . . . . . . . . . Retrieve Components 1 | . 1 . . . . . . . . . . . Scanalyzer 1 | . . . . . . . . . . . . 1 Insert Component 1 | . . . . . . . . . . . . 1 Garrison Access Hacks . | . . . . . . . . . . . . . Unauthorized Hacks 9 | . 4 2 . . . 2 . . 1 . . . Terminals 9 | . 4 2 . . . 2 . . 1 . . . Botnet 9 | . 4 2 . . . 2 . . 1 . . . Fabricators . | . . . . . . . . . . . . . Repair Stations . | . . . . . . . . . . . . . Recycling Units . | . . . . . . . . . . . . . Scanalyzers . | . . . . . . . . . . . . . Garrison Access . | . . . . . . . . . . . . . Data Cores Recovered . | . . . . . . . . . . . . . Used . | . . . . . . . . . . . . . Hacking Detections 13 | . 5 2 . . . 2 . . 1 . . 3 Full Trace Events 2 | . . 1 . . . 1 . . . . . . Feedback Events . | . . . . . . . . . . . . . Feedback Blocked . | . . . . . . . . . . . . . Robot Schematics Acquired . | . . . . . . . . . . . . . Robots Built 1 | . . . . . . . . . . . . 1 Authchips . | . . . . . . . . . . . . . Time 81 | . . . . . . . . . . . . 81 Total Robot Build Rating 1 | . . . . . . . . . . . . 1 Part Schematics Acquired . | . . . . . . . . . . . . . Parts Built . | . . . . . . . . . . . . . Authchips . | . . . . . . . . . . . . . Time . | . . . . . . . . . . . . . Total Part Build Rating . | . . . . . . . . . . . . . Parts Repaired . | . . . . . . . . . . . . . Time . | . . . . . . . . . . . . . Parts Recycled . | . . . . . . . . . . . . . Recycled Matter . | . . . . . . . . . . . . . Retrieved Matter . | . . . . . . . . . . . . . Retrieved Components 6 | . 6 . . . . . . . . . . . Parts Scanalyzed . | . . . . . . . . . . . . . Part Schematics Acquired . | . . . . . . . . . . . . . Parts Damaged . | . . . . . . . . . . . . . Bothacking | -11 -10 -9 -9 -9 -8 -8 -7 -7 -6 -6 -6 -5 ------------ Run | Jun Mat Mat Min Exi Min Mat Fac DSF Fac Low Low Fac Used RIF Installer . | . . . . . . . . . . . . . Robots Hacked . | . . . . . . . . . . . . . Non-combat . | . . . . . . . . . . . . . Combat . | . . . . . . . . . . . . . Robot Hacks Applied . | . . . . . . . . . . . . . Relay Couplers Released . | . . . . . . . . . . . . . Fabnet Peak Effective % . | . . . . . . . . . . . . . Robots Rewired . | . . . . . . . . . . . . . Allies Hacked . | . . . . . . . . . . . . . Hacks Repelled . | . . . . . . . . . . . . . Allies | -11 -10 -9 -9 -9 -8 -8 -7 -7 -6 -6 -6 -5 -------- Run | Jun Mat Mat Min Exi Min Mat Fac DSF Fac Low Low Fac Total Allies 3 | . . . 2 . . . . . . . . 1 Largest Group 2 | . . . 2 1 . . . . . . . 1 Highest-Rated Group 45 | . . . 45 31 . . . . . . . 10 Highest-Rated Ally 31 | . . . 31 31 . . . . . . . 10 Total Orders 1 | . . . . . . . . . . . . 1 TUNNEL 1 | . . . . . . . . . . . . 1 Ally Attacks . | . . . . . . . . . . . . . Total Damage . | . . . . . . . . . . . . . Kills . | . . . . . . . . . . . . . Allies Corrupted . | . . . . . . . . . . . . . Allies Melted . | . . . . . . . . . . . . . Intel | -11 -10 -9 -9 -9 -8 -8 -7 -7 -6 -6 -6 -5 ------- Run | Jun Mat Mat Min Exi Min Mat Fac DSF Fac Low Low Fac Robot Analysis Total . | . . . . . . . . . . . . . Derelict Logs Recovered 2 | . . . 1 . . . . . . 1 . . Drone Launches . | . . . . . . . . . . . . . Drone Recoveries . | . . . . . . . . . . . . . Exploration | -11 -10 -9 -9 -9 -8 -8 -7 -7 -6 -6 -6 -5 ------------- Run | Jun Mat Mat Min Exi Min Mat Fac DSF Fac Low Low Fac Turns Passed 4307 | 76 719 127 226 387 436 974 5 78 139 168 11 961 Spaces Moved 3394 | 54 379 78 177 322 362 254 3 89 263 514 38 861 Core 43 | 9 . . . . . . . . . . . 34 Treads . | . . . . . . . . . . . . . Legs 1630 | 45 379 78 177 322 362 254 3 10 . . . . Wheels . | . . . . . . . . . . . . . Hover . | . . . . . . . . . . . . . Flight 1721 | . . . . . . . . 79 263 514 38 827 Fastest Speed 25 | 50 120 120 120 120 120 120 122 31 28 28 28 25 Average Speed 73 | 108 120 120 120 120 120 122 122 49 28 28 28 29 Slowest Speed 360 | 120 120 120 120 120 120 123 122 217 111 28 28 360 Overloaded Moves . | . . . . . . . . . . . . . Propulsion Burnouts . | . . . . . . . . . . . . . Robots Hopped 3 | . . . . . . . . 1 . . . 2 Cave-ins Triggered . | . . . . . . . . . . . . . Exploration Rate (%) 39 | 3 50 16 46 71 78 21 . 86 6 73 8 16 Regions Visited 12 Branch Regions 5 Pre-discovered Areas 1 | . . . . . . . . . . 1 . . Known Exits Taken 3 | . . 1 . . . 1 1 . . . . . Unknown Exits Taken 8 | 1 1 . 1 1 1 . . . 1 1 1 . Scrap Searched 7 | . . . 1 . 1 . . . . 5 . . Spaces Dug . | . . . . . . . . . . . . . Terrain Destroyed . | . . . . . . . . . . . . . Melee . | . . . . . . . . . . . . . Projectile . | . . . . . . . . . . . . . AOE . | . . . . . . . . . . . . . Terrain Rammed . | . . . . . . . . . . . . . Walls Destroyed . | . . . . . . . . . . . . . Machines Disabled . | . . . . . . . . . . . . . Actions | -11 -10 -9 -9 -9 -8 -8 -7 -7 -6 -6 -6 -5 --------- Run | Jun Mat Mat Min Exi Min Mat Fac DSF Fac Low Low Fac Total 5071 | 71 601 100 183 322 363 893 4 115 324 539 37 1519 Wait 1439 | . 186 15 2 . 2 585 . 2 44 10 . 593 Move 3376 | 53 378 77 176 321 361 253 2 86 262 513 37 857 Hop 3 | . . . . . . . . 1 . . . 2 Pick Up 52 | 12 6 . 2 1 . 10 . 8 5 3 . 5 Fast Attach 13 | . 1 . . . . 2 . 3 3 4 . . Attach 24 | 6 . 3 . . . 2 2 . 2 . . 9 Detach . | . . . . . . . . . . . . . Swap 22 | . 2 . . . . 8 . 3 3 1 . 5 Drop 47 | . 6 . . . . 16 . 8 5 8 . 4 Fire 82 | . 22 5 3 . . 16 . 4 . . . 32 Melee . | . . . . . . . . . . . . . Ram 10 | . . . . . . . . . . . . 10 Kick . | . . . . . . . . . . . . . Crush . | . . . . . . . . . . . . . Escape Stasis . | . . . . . . . . . . . . . Rewire . | . . . . . . . . . . . . . Trap 3 | . . . . . . 1 . . . . . 2 Miscellaneous . | . . . . . . . . . . . . . Route ------- -11/Junkyard -10/Materials -9/Materials -9/Mines -9/Exiles -8/Mines -8/Materials (discovered 2 exits: *Fac x2) -7/Factory -7/DSF -6/Factory -6/Lower Caves -6/Lower Caves -5/Factory History --------- Turn | Location | Event 9 | -11/Junkyard | Discovered new exit (range 15) 77 | -11/Junkyard | Entered Materials 306 | -10/Materials | Build established: Mutant 726 | -10/Materials | Discovered new exit (range 16) 796 | -10/Materials | Entered another Materials area 796 | -9/Materials | Evolved 2 slots: Weapon x2 822 | -9/Materials | Identified exit to Mines 923 | -9/Materials | Entered Mines 940 | -9/Mines | Met a Derelict bent on vengeance 1069 | -9/Mines | Build established: Skirmisher 1097 | -9/Mines | Assembled infested the area 1103 | -9/Mines | Learned location of 1 exit from Materials 1140 | -9/Mines | Discovered new exit (range 5) 1149 | -9/Mines | Entered Exiles 1149 | -9/Exiles | Accompanied by 1 ally 1178 | -9/Exiles | Met 8R-AWN 1179 | -9/Exiles | Led the pair of lost Derelicts to a safe place 1197 | -9/Exiles | Met EX-HEX 1255 | -9/Exiles | Met EX-DEC 1319 | -9/Exiles | Met EX-BIN 1347 | -9/Exiles | Aligned with FarCom system 1349 | -9/Exiles | Given EX-Vault access code 1383 | -9/Exiles | Opened EX-Vault 1393 | -9/Exiles | Found PSU Rigger 1429 | -9/Exiles | Warned to stay clear of 0b10 Research branches 1518 | -9/Exiles | Discovered new exit (range 14) 1536 | -9/Exiles | Left Exiles lab with PSU Rigger 1536 | -9/Exiles | Entered Mines 1958 | -8/Mines | Discovered new exit (range 13) 1972 | -8/Mines | Entered Materials 1972 | -8/Materials | Evolved 2 slots: Propulsion x1, Utility x1 1973 | -8/Materials | Identified exit to Factory 2944 | -8/Materials | Discovered exit to Factory (range 3) 2946 | -8/Materials | Entered Factory 2946 | -7/Factory | Evolved 2 slots: Propulsion x1, Utility x1 2951 | -7/Factory | Identified exit to DSF 2951 | -7/Factory | Entered DSF 2983 | -7/DSF | Additional patrols routed to DSF 3024 | -7/DSF | Discovered new exit (range 15) 3029 | -7/DSF | Entered Factory 3029 | -6/Factory | Evolved 2 slots: Propulsion x1, Utility x1 3164 | -6/Factory | Discovered new exit (range 16) 3168 | -6/Factory | Entered Lower Caves 3202 | -6/Lower Caves | Encountered a Warlord checkpoint 3280 | -6/Lower Caves | Build established: Sprinter 3331 | -6/Lower Caves | Discovered new exit (range 16) 3336 | -6/Lower Caves | Entered another Lower Caves area 3344 | -6/Lower Caves | Discovered new exit (range 4) 3346 | -6/Lower Caves | Encountered a Warlord checkpoint 3347 | -6/Lower Caves | Entered Factory 3347 | -5/Factory | Evolved 2 slots: Propulsion x1, Utility x1 3564 | -5/Factory | Fabricated T-07 Excavator? 4056 | -5/Factory | Lost 3 parts (1n2u) 4221 | -5/Factory | Spotted B-75 Beast 4280 | -5/Factory | Core integrity fell below 50% 4295 | -5/Factory | Core integrity fell below 20% 4308 | -5/Factory | Destroyed by P-70 Sage with Tesla Rifle Last Messages --------------- 04275_ Slammed into S-27 Virus. 04278_ Sml. Storage Unit destroyed. 04278_ Broken Triangulator destroyed. 04282_ Slug penetrates Wall. 04283_ S-27 Virus destroyed. 04285_ Slug penetrates Wall. 04285_ Xenon Bombardment Thruster destroyed. 04287_ Slammed into S-27 Virus. 04290_ System corrupted: Energy discharge (-39). 04290_ Slammed into H-66 Slayer. 04292_ S-27 Virus destroyed. 04292_ P-70 Sage resets T-07 Excavator, system corruption cleaned. 04293_ Penetrated by Slug. 04293_ Slug penetrates Wall. 04293_ S-27 Virus destroyed. 04295_ P-70 Sage resets S-27 Virus, system corruption cleaned. 04295_ Slammed into T-07 Excavator. 04296_ Penetrated by Slug. 04297_ M-13 Machinist repairs S-27 Virus. 04308_ Slug penetrates Wall. Map ----- +----------------------------------------------------+ | ????????????# ! + + ## """ | | ????????????# # [%# + """ | | ????????????########### # ## | | ????????????# # # ## | | ????????????# """" # ##############+### | | ????????????# """" = ???????????????? | | ????????????# """" #%= #??????????????????##### | | ????????????# """" #%[ #??????????????????????? | | ????????????# #= #??????????????????????? | | ????????????# """ """ # #??????????????????????? | | ????????????# """T""" # #??????????????????????? | | ????????????########### #??????????????????????? | | ??????????????????????# #??????????????????????? | | ??????????????????????# #??????????????????????? | | ??????????????????????# #????##########????????? | | ??????????????????????# #????# ????????? | | ??????????????????????# #????# ???????? | | ??????????????????????#pph#????# """ ""???????? | | ??????????????????????# m#????# """ ""???????? | | ??????????????????????# ###### """ """ #????? | | ??????????????????????# # ?????? | | ??????????????????????# + """ """??????? | | ??????????????????????# s# """ """ ?????? | | ??????????????????????## # """ """ #????? | | ???????????????????????# # #????? | | ???????????????????????# @ s #????? | | ???????????????????????#+####### #????? | | ???????????????????????????????##############????? | | ?????????????????????????????????????????????????? | | ?????????????????????????????????????????????????? | | ?????????????????????????????????????????????????? | | ?????????????????????????????????????????????????? | | ?????????????????????????????????????????????????? | | ?????????p???????????????????????????????????????? | | ?????????????????????????????????????????????????? | | ?????????????????????????????????????????????????? | | ?????????????????????????????????????????????????? | | ?????????????????????????????????????????????????? | | ?????????????????????????????????????????????????? | | ?????????????????????????????????????????????????? | | ?????????????????????????????????????????????????? | | ?????????????????????????????????????????????????? | | ?????????????????????????????????????????????????? | | ?????????????????????????????????????????????????? | | ?????????????????????????????????????????????????? | | ?????????????????????????????????????????????????? | | ?????????????????????????????????????????????????? | | ?????????????????????????????????????????????????? | | ?????????????????????????????????????????????????? | | ?????????????????????????????????????????????????? | +----------------------------------------------------+ Best States ------------- Heat Dissipation 40 Energy Generation 15 Energy Capacity 265 Matter Stores 300 Matter Capacity 300 Sight Range 22 Terrain Scan Range 14 Terrain Scan Density 85 Jamming Range 12 Power Shielding 33 Propulsion Shielding 66 Evasion (%) 65 Targeting Accuracy 5 Melee Accuracy 5 Authchip Count 1 Item Schematics ----------------- None Robot Schematics ------------------ None Fabricated ------------ T-07 Excavator | x1 | -5/Factory | Preloaded Alien Tech Used ----------------- None Achievements -------------- My Command Is Your Wish Challenges ------------ None Game ------ Seed ControlSlugRifle Manual? 0 Play Time 00:59:33 Cumulative 15.4 hours Start 2024.02.09 @ 20:46:43 End 2024.02.09 @ 21:52:45 Sessions 1 Manual Loads 0 Difficulty Rogue Special Mode None Game No. 22 Rogue 22 Adventurer 0 Explorer 0 Win Type - Total 0 Types 0/0/0/0/0/0/0/0/0 Lore% 13 Gallery% 23 Achievement% 21 Wizard Run 0 Options --------- ASCII 1 Keyboard 0 Movement Numpad Keybinds 0 Fullscreen 2 Font 18/SmallcapsGlow Map View 76x50 Tactical HUD 1 Map Filters NONE Filters NONE Steam 1 RUN: a208bea1-6821-4568-bfe8-9aea26dee436